bitfinex-derivatives/quotes_BTCF0:USTF0_20250402
["timestamp","ask_amount","ask_price","bid_price","bid_amount"]
[1743622150307,0.0587,86427.0,86426.0,0.27671502]
[1743622152203,0.0587,86427.0,86426.0,0.27670878]
[1743622154101,0.0587,86427.0,86426.0,0.27671713]
[1743622154514,0.0587,86427.0,86426.0,0.25144111]
[1743622155309,0.1744022,86427.0,86426.0,0.25144111]
[1743622155907,0.0587,86427.0,86426.0,0.25133805]
[1743622157311,0.1744022,86427.0,86426.0,0.25133805]
[1743622157513,0.30153747,86427.0,86426.0,0.01753445]
[1743622157915,0.40153747,86427.0,86426.0,0.01753445]
[1743622158107,0.46093747,86427.0,86426.0,0.01753445]
[1743622158619,0.46093747,86427.0,86426.0,0.13323805]
[1743622158811,0.36093747,86427.0,86426.0,0.13323805]
[1743622159014,0.47093747,86427.0,86426.0,0.13323805]
[1743622159306,0.83173747,86427.0,86426.0,0.13323805]
[1743622160006,0.83173747,86427.0,86426.0,0.00184]
[1743622161018,0.1157089,86422.0,86421.0,0.1157096]
[1743622161215,0.2257089,86422.0,86421.0,0.13326656]
[1743622161511,0.47665652,86422.0,86421.0,0.01755696]
[1743622161825,0.1157156,86417.0,86408.0,0.34555835]
[1743622162006,0.8240756,86417.0,86416.0,0.00209357]
[1743622162206,1.13662322,86417.0,86416.0,0.00017357]
[1743622164219,1.05906322,86417.0,86416.0,0.00017357]
[1743622164615,1.05906322,86417.0,86416.0,0.00201357]
[1743622164814,1.05906322,86417.0,86416.0,0.00017357]
[1743622165724,1.13662322,86417.0,86416.0,0.00017357]
[1743622167210,1.13662322,86417.0,86407.0,0.00046292]
[1743622167525,0.4765277,86408.0,86407.0,0.00046292]
[1743622167715,0.7465277,86408.0,86407.0,0.00046292]
[1743622167915,0.98682928,86408.0,86407.0,0.00046292]
[1743622168115,0.98682928,86408.0,86407.0,0.00230292]
[1743622168323,0.98682928,86408.0,86407.0,0.00046292]
[1743622168521,0.98682928,86408.0,86407.0,0.00230292]
[1743622168724,0.98682928,86408.0,86407.0,0.00046292]
[1743622169021,0.29462928,86408.0,86407.0,0.11811192]
[1743622169331,0.29462928,86408.0,86407.0,0.13369415]
[1743622169724,0.29462928,86408.0,86407.0,0.19129415]
[1743622169923,0.29462928,86408.0,86407.0,0.31139415]
[1743622170423,0.10332661,86415.0,86414.0,0.1157196]
[1743622170616,0.10332661,86415.0,86414.0,0.13130183]
[1743622170927,0.23744465,86415.0,86414.0,0.25274183]
[1743622171122,0.23744465,86415.0,86414.0,0.25290033]
[1743622171526,0.23744465,86415.0,86414.0,0.61370033]
[1743622172225,0.35316295,86415.0,86414.0,0.61370033]
[1743622172611,0.35316295,86415.0,86414.0,0.13711076]
[1743622172815,0.35316295,86415.0,86414.0,0.13527076]
[1743622173025,0.35316295,86415.0,86414.0,0.1196]
[1743622173218,0.48493634,86415.0,86414.0,0.0598]
[1743622173621,0.48493634,86415.0,86410.0,0.1157245]
[1743622173622,0.1157236,86411.0,86410.0,0.1157245]
[1743622173821,0.2157236,86411.0,86410.0,0.13328641]
[1743622174021,0.39941755,86411.0,86410.0,0.13328641]
[1743622174328,0.39941755,86411.0,86410.0,0.01756191]
[1743622174516,0.39941755,86411.0,86410.0,0.01572191]
[1743622174717,0.115725,86410.0,86409.0,0.0622]
[1743622174916,0.225725,86410.0,86409.0,0.0622]
[1743622175116,0.46525299,86410.0,86409.0,0.0622]
[1743622175329,0.46525299,86410.0,86409.0,0.06412]
[1743622175825,0.35525299,86410.0,86409.0,0.00192]
[1743622176023,0.35525299,86410.0,86407.0,0.00046292]
[1743622176024,0.1157277,86408.0,86407.0,0.00046292]
[1743622176230,0.3657277,86408.0,86407.0,0.00234292]
[1743622176527,0.60649767,86408.0,86407.0,0.00234292]
[1743622176921,0.60649767,86408.0,86407.0,0.00046292]
[1743622178430,0.60649767,86408.0,86407.0,0.11619192]
[1743622178730,0.60649767,86408.0,86407.0,0.00046292]
[1743622179230,0.60649767,86408.0,86407.0,0.00238292]
[1743622179623,0.60649767,86408.0,86407.0,0.06008292]
[1743622184344,0.60649767,86408.0,86407.0,0.00046292]
[1743622184537,0.60649767,86408.0,86387.0,0.3608]
[1743622184538,0.1157384,86400.0,86387.0,0.3608]
[1743622184731,0.7265384,86400.0,86388.0,0.0603]
[1743622185042,0.96885791,86400.0,86390.0,0.115751]
[1743622185231,0.96885791,86400.0,86391.0,0.06076301]
[1743622186539,0.96885791,86400.0,86394.0,0.1157454]
[1743622186839,0.96885791,86400.0,86395.0,0.0597]
[1743622187028,0.96885791,86400.0,86396.0,0.0575]
[1743622187340,0.96885791,86400.0,86399.0,0.01604049]
[1743622187832,0.96885791,86400.0,86399.0,0.00017357]
[1743622188238,0.90885791,86400.0,86399.0,0.00017357]
[1743622188631,0.96755791,86400.0,86399.0,0.00017357]
[1743622188830,0.96755791,86400.0,86399.0,0.01597892]
[1743622189136,0.96755791,86400.0,86399.0,0.00017357]
[1743622190028,0.1157491,86392.0,86387.0,0.1207]
[1743622190234,0.3657491,86392.0,86391.0,0.01801679]
[1743622190435,0.54791226,86392.0,86391.0,0.01801679]
[1743622190639,0.90871226,86392.0,86391.0,0.01801679]
[1743622190942,0.90871226,86392.0,86391.0,0.01620372]
[1743622191140,0.90871226,86392.0,86391.0,0.01808372]
[1743622191336,0.54791226,86392.0,86391.0,0.01808372]
[1743622193835,0.54791226,86392.0,86391.0,0.00234301]
[1743622195435,0.48841226,86392.0,86391.0,0.11809341]
[1743622195637,0.23841226,86392.0,86391.0,0.13381758]
[1743622195836,0.23841226,86392.0,86391.0,0.25171758]
[1743622198938,0.29711226,86392.0,86391.0,0.25171758]
[1743622199835,0.29711226,86392.0,86391.0,0.25168843]
[1743622200033,0.23841226,86392.0,86391.0,0.25168843]
[1743622200247,0.1157491,86392.0,86391.0,0.25168843]
[1743622200545,0.29903777,86392.0,86391.0,0.25168843]
[1743622200738,0.29903777,86392.0,86391.0,0.13593803]
[1743622200939,0.1157598,86384.0,86375.0,0.00046309]
[1743622201142,0.1157598,86384.0,86383.0,0.00145357]
[1743622201143,0.7565598,86384.0,86383.0,0.00145357]
[1743622201351,0.1157679,86378.0,86377.0,0.21717966]
[1743622201535,0.1157973,86356.0,86347.0,0.58116156]
[1743622201733,1.04916,86356.0,86347.0,0.4121493]
[1743622201940,0.4766081,86348.0,86347.0,0.1711493]
[1743622202136,0.7466081,86348.0,86347.0,0.1141493]
[1743622202448,1.21476104,86348.0,86347.0,0.0115354]
[1743622202841,1.06476104,86348.0,86347.0,0.0115354]
[1743622203440,0.1158108,86346.0,86339.0,0.55425156]
[1743622203639,0.3958108,86346.0,86339.0,0.55425156]
[1743622203839,0.52146022,86346.0,86339.0,0.55425156]
[1743622204843,0.52146022,86346.0,86340.0,0.0593]
[1743622205037,0.58356023,86346.0,86345.0,0.48397994]
[1743622205739,0.58356023,86346.0,86345.0,0.0006]
[1743622205954,0.1158134,86344.0,86339.0,0.00017367]
[1743622206250,0.75721341,86344.0,86339.0,0.00017367]
[1743622206449,0.88781006,86344.0,86339.0,0.00017367]
[1743622206634,0.94931006,86344.0,86339.0,0.00017367]
[1743622207839,1.02691006,86344.0,86339.0,0.00017367]
[1743622208746,1.16381212,86344.0,86339.0,0.00017367]
[1743622210951,0.1158188,86340.0,86339.0,4e-08]
[1743622211146,0.35641881,86340.0,86339.0,4e-08]
[1743622211345,0.48475041,86340.0,86339.0,4e-08]
[1743622211645,0.48475041,86340.0,86327.0,0.00046335]
[1743622211646,0.1158336,86329.0,86328.0,0.01329424]
[1743622211851,1.11803361,86329.0,86328.0,0.01329424]
[1743622212049,1.2417238,86329.0,86328.0,0.01329424]
[1743622212550,1.3610238,86329.0,86328.0,0.01329424]
[1743622212748,1.3610238,86329.0,86328.0,0.07029424]
[1743622213252,1.2451902,86329.0,86327.0,0.00046335]
[1743622213453,0.115855,86313.0,86312.0,0.05203702]
[1743622213649,0.115855,86313.0,86311.0,4e-08]
[1743622213650,0.1158564,86312.0,86311.0,4e-08]
[1743622213852,0.4648964,86312.0,86311.0,4e-08]
[1743622214055,0.5923144,86312.0,86311.0,4e-08]
[1743622217155,0.5525144,86312.0,86311.0,4e-08]
[1743622217450,0.1158671,86304.0,86303.0,0.0001166]
[1743622217651,0.7073071,86304.0,86303.0,0.0574566]
[1743622217847,0.82862428,86304.0,86303.0,0.0574566]
[1743622218052,0.82862428,86304.0,86303.0,0.0568166]
[1743622218253,0.83718582,86304.0,86303.0,0.0568166]
[1743622218452,0.1158711,86301.0,86295.0,0.00046352]
[1743622218647,0.71931576,86301.0,86297.0,0.0588]
[1743622218855,0.8508026,86301.0,86297.0,0.0588]
[1743622219240,0.8508026,86301.0,86300.0,0.0015993]
[1743622219753,0.1158873,86289.0,86280.0,0.1158984]
[1743622219942,0.75728731,86289.0,86279.0,0.00042363]
[1743622220253,0.87841921,86289.0,86282.0,0.1158958]
[1743622220450,0.87841921,86289.0,86283.0,0.1158949]
[1743622220752,0.87841921,86289.0,86288.0,0.06258]
[1743622221651,0.87841921,86289.0,86288.0,0.0619]
[1743622223049,0.87841921,86289.0,86288.0,0.0625]
[1743622223248,0.87841921,86289.0,86288.0,0.0619]
[1743622225057,0.115894,86284.0,86283.0,0.1212]
[1743622225254,0.38649401,86284.0,86283.0,0.1212]
[1743622225454,0.51140835,86284.0,86283.0,0.1212]
[1743622230557,0.12551435,86284.0,86283.0,0.2370953]
[1743622230759,0.24140835,86284.0,86283.0,0.1212]
[1743622230963,0.24140835,86284.0,86283.0,0.1218]
[1743622231155,0.24140835,86284.0,86283.0,0.1212]
[1743622231548,0.24140835,86284.0,86283.0,0.2370953]
[1743622231753,0.24140835,86284.0,86283.0,0.1212]
[1743622231954,0.24140835,86284.0,86283.0,0.12184]
[1743622232164,0.24140835,86284.0,86283.0,0.25301098]
[1743622232165,0.00060001,86284.0,86283.0,0.25301098]
[1743622232662,0.11649401,86284.0,86283.0,0.25301098]
[1743622233058,0.11649401,86284.0,86283.0,0.2377353]
[1743622233259,0.11649401,86284.0,86283.0,0.12184]
[1743622233762,0.2376937,86284.0,86283.0,0.1212]
[1743622233962,0.2376937,86284.0,86283.0,0.1218]
[1743622234161,0.33986122,86284.0,86283.0,0.1218]
[1743622234362,0.33986122,86284.0,86283.0,0.2376953]
[1743622235957,0.33986122,86284.0,86283.0,0.1218]
[1743622236159,0.33986122,86284.0,86283.0,0.1212]
[1743622236367,0.33986122,86284.0,86283.0,0.1218]
[1743622236658,0.33986122,86284.0,86283.0,0.2376953]
[1743622237165,0.33986122,86284.0,86283.0,0.25291509]
[1743622237759,0.22396722,86284.0,86283.0,0.25291509]
[1743622238063,0.10276753,86284.0,86283.0,0.61371509]
[1743622238563,0.1158877,86289.0,86288.0,0.1158886]
[1743622238754,0.17249675,86290.0,86289.0,0.1158873]
[1743622239064,0.17249675,86290.0,86289.0,0.25750709]
[1743622239266,0.28902265,86290.0,86289.0,0.25750709]
[1743622239868,0.17313675,86290.0,86289.0,0.25750709]
[1743622241160,0.28902265,86290.0,86289.0,0.25750709]
[1743622242059,0.28902265,86290.0,86289.0,0.2422873]
[1743622242657,0.1165259,86290.0,86289.0,0.2422873]
[1743622242860,0.00017379,86292.0,86291.0,0.1158846]
[1743622243164,0.13539896,86292.0,86291.0,0.1165646]
[1743622243368,0.13539896,86292.0,86291.0,0.2398646]
[1743622245069,0.00085379,86292.0,86291.0,0.2398646]
[1743622245869,0.00085379,86292.0,86291.0,0.6006646]
[1743622246172,0.20574116,86301.0,86300.0,0.1158725]
[1743622246373,0.0008,86301.0,86300.0,0.1166725]
[1743622246564,0.2146462,86309.0,86308.0,0.1158617]
[1743622246870,0.3311866,86309.0,86308.0,0.1167017]
[1743622247068,0.45600487,86309.0,86308.0,0.2390017]
[1743622247763,0.51920487,86309.0,86308.0,0.2390017]
[1743622249173,0.40334447,86309.0,86308.0,0.2390017]
[1743622249575,0.29619907,86309.0,86308.0,0.2390017]
[1743622249762,0.30810321,86326.0,86313.0,0.115855]
[1743622249966,0.20762929,86314.0,86313.0,0.477695]
[1743622250171,0.20654929,86314.0,86313.0,0.594995]
[1743622250475,0.14942089,86314.0,86313.0,0.594995]
[1743622250668,0.05313049,86314.0,86313.0,0.594995]
[1743622250969,0.00122359,86314.0,86313.0,0.594995]
[1743622251564,9e-08,86314.0,86313.0,0.594995]
[1743622254173,8e-08,86317.0,86316.0,0.115851]
[1743622254467,8e-08,86317.0,86316.0,0.116891]
[1743622254660,8e-08,86317.0,86316.0,0.298091]
[1743622254858,0.10309889,86328.0,86316.0,0.2401651]
[1743622255067,0.10409889,86328.0,86327.0,0.4766362]
[1743622255268,0.10409889,86328.0,86327.0,0.4776362]
[1743622255477,0.10409889,86328.0,86327.0,0.6002362]
[1743622255867,0.10409889,86328.0,86327.0,0.61203294]
[1743622257472,0.0602,86333.0,86332.0,0.1158295]
[1743622257673,0.06156,86333.0,86332.0,0.1158295]
[1743622257976,9e-08,86344.0,86337.0,0.0579109]
[1743622258164,9e-08,86344.0,86343.0,0.4766148]
[1743622258364,9e-08,86344.0,86343.0,0.4783348]
[1743622260269,9e-08,86344.0,86343.0,0.1175348]
[1743622260576,0.13220535,86344.0,86343.0,0.1175348]
[1743622260773,0.13220526,86344.0,86343.0,0.1175348]
[1743622261169,0.1158094,86347.0,86343.0,0.1175348]
[1743622261170,0.25188205,86345.0,86344.0,0.1158134]
[1743622261478,0.36769415,86345.0,86344.0,0.1778334]
[1743622261877,0.2373121,86345.0,86344.0,0.1778334]
[1743622262182,0.36719292,86345.0,86344.0,0.1778334]
[1743622262678,0.1215,86345.0,86344.0,0.1778334]
[1743622262974,0.3608,86351.0,86350.0,0.1158054]
[1743622262975,0.1158064,86351.0,86350.0,0.1158054]
[1743622263170,0.1771064,86351.0,86350.0,0.1176054]
[1743622263371,0.3052352,86351.0,86350.0,0.1176054]
[1743622264270,0.3662352,86351.0,86350.0,0.2334108]
[1743622264467,0.1894288,86351.0,86350.0,0.2334108]
[1743622264672,0.1894288,86351.0,86350.0,0.2971108]
[1743622264966,0.1281288,86351.0,86350.0,0.2971108]
[1743622266269,0.1281288,86351.0,86350.0,0.1813054]
[1743622266473,0.3699329,86351.0,86350.0,0.0018]
[1743622266769,0.3699329,86351.0,86350.0,0.1176054]
[1743622266973,0.1281288,86351.0,86350.0,0.1176054]
[1743622267280,0.4765839,86366.0,86365.0,0.1157853]
[1743622267472,0.4765839,86366.0,86365.0,0.1175053]
[1743622267666,0.60020087,86366.0,86365.0,0.1175053]
[1743622268778,0.72710087,86366.0,86365.0,0.00172]
[1743622269081,0.2315843,86362.0,86361.0,0.1157853]
[1743622269281,0.2315843,86362.0,86361.0,0.1175853]
[1743622269487,0.36400493,86362.0,86361.0,0.1175853]
[1743622269675,0.36400493,86362.0,86361.0,0.1767853]
[1743622270065,0.13242063,86362.0,86361.0,0.1767853]
[1743622270477,0.13169352,86365.0,86364.0,0.1736786]
[1743622270674,0.2426851,86366.0,86364.0,0.0596133]
[1743622270877,0.1157851,86366.0,86365.0,0.1157853]
[1743622271082,0.1161825,86368.0,86367.0,0.1157826]
[1743622271587,0.25053374,86368.0,86367.0,0.1157826]
[1743622272380,0.0578933,86364.0,86362.0,0.1736789]
[1743622272581,0.0578933,86364.0,86363.0,0.115788]
[1743622272978,0.1798482,86364.0,86363.0,0.115788]
[1743622274470,0.0004,86368.0,86367.0,0.1157826]
[1743622274676,0.0582805,86384.0,86383.0,0.1157612]
[1743622274677,0.0004,86384.0,86383.0,0.1157612]
[1743622275183,0.0004,86384.0,86383.0,0.1787612]
[1743622275683,0.0004,86384.0,86383.0,0.19053369]
[1743622276477,0.0004,86384.0,86383.0,0.19229369]
[1743622277968,0.0004,86384.0,86383.0,0.25149369]
[1743622278386,0.0004,86384.0,86383.0,0.12929369]
[1743622278891,0.1161598,86384.0,86383.0,0.12929369]
[1743622279179,0.06467368,86392.0,86383.0,0.12929369]
[1743622279180,0.11592278,86392.0,86391.0,0.1157504]
[1743622279383,0.11592278,86392.0,86391.0,0.1174704]
[1743622279679,0.23923304,86392.0,86391.0,0.1174704]
[1743622280474,0.12348394,86392.0,86391.0,0.1174704]
[1743622280679,0.4612,86400.0,86399.0,0.1157397]
[1743622280891,0.4612,86400.0,86399.0,0.1174997]
[1743622281186,0.33949669,86400.0,86399.0,0.1174997]
[1743622281582,0.33949669,86400.0,86399.0,0.0832907]
[1743622281978,0.22375829,86400.0,86399.0,0.0832907]
[1743622282683,0.22375829,86400.0,86399.0,0.1431907]
[1743622283083,0.33949669,86400.0,86399.0,0.1431907]
[1743622283282,0.22375829,86400.0,86399.0,0.1431907]
[1743622284379,0.22375829,86400.0,86399.0,0.2042907]
[1743622286776,0.1004,86400.0,86399.0,0.2042907]
[1743622286985,0.07274749,86418.0,86407.0,0.115729]
[1743622287190,0.01214749,86418.0,86415.0,0.1157183]
[1743622287491,0.115704,86426.0,86421.0,0.1157103]
[1743622287690,0.1157067,86424.0,86421.0,0.1174703]
[1743622287988,0.41599411,86422.0,86421.0,0.1174703]
[1743622288291,0.30028521,86422.0,86421.0,0.1174703]
[1743622288485,0.41599411,86422.0,86421.0,0.2401703]
[1743622289794,0.41599411,86422.0,86421.0,0.1760703]
[1743622289984,0.41599411,86422.0,86421.0,0.06036]
[1743622290294,0.56559411,86422.0,86421.0,0.00176]
[1743622290479,0.1157196,86414.0,86413.0,0.18049458]
[1743622290789,0.4765196,86414.0,86413.0,0.18221458]
[1743622290993,0.72520931,86414.0,86413.0,0.18221458]
[1743622292089,0.72520931,86414.0,86413.0,0.18049458]
[1743622292289,0.72520931,86414.0,86413.0,0.18221458]
[1743622295501,0.72520931,86414.0,86412.0,0.03166537]
[1743622295800,0.72520931,86414.0,86413.0,0.115721]
[1743622295989,0.72520931,86414.0,86413.0,0.179221]
[1743622298181,0.72520931,86414.0,86413.0,0.180461]
[1743622298785,0.72520931,86414.0,86413.0,0.239961]
[1743622298981,0.72520931,86414.0,86413.0,0.116961]
[1743622299187,0.36440931,86414.0,86413.0,0.115721]
[1743622299494,0.36440931,86414.0,86413.0,0.178721]
[1743622299699,0.36440931,86414.0,86413.0,0.242821]
[1743622300093,0.36564932,86414.0,86413.0,0.242821]
[1743622300788,0.24992972,86414.0,86413.0,0.242821]
[1743622300988,0.17130968,86431.0,86421.0,0.1157103]
[1743622301189,0.115708,86423.0,86421.0,0.1172703]
[1743622301390,0.13058857,86422.0,86421.0,0.1765703]
[1743622301591,0.24629747,86422.0,86421.0,0.2383703]
[1743622301992,0.13058857,86422.0,86421.0,0.2383703]
[1743622302694,0.24629747,86422.0,86421.0,0.2383703]
[1743622303299,0.30689747,86422.0,86421.0,0.1790703]
[1743622303496,0.37159747,86422.0,86421.0,0.1790703]
[1743622305204,0.37159747,86422.0,86421.0,0.2394703]
[1743622305502,0.30689747,86422.0,86421.0,0.2394703]
[1743622307097,0.30689747,86422.0,86421.0,0.00156]
[1743622307303,0.42619747,86422.0,86421.0,0.1172703]
[1743622307694,0.42619747,86422.0,86421.0,0.1793703]
[1743622307992,0.42619747,86422.0,86421.0,0.06366]
[1743622308192,0.52619747,86422.0,86421.0,0.00156]
[1743622308595,0.1157129,86419.0,86418.0,0.1157141]
[1743622308811,0.1157129,86419.0,86418.0,0.1173541]
[1743622308994,0.72978824,86419.0,86418.0,0.00164]
[1743622309195,0.1157263,86409.0,86408.0,0.0612]
[1743622309495,0.1157263,86409.0,86408.0,0.2363447]
[1743622309698,0.1781263,86409.0,86408.0,0.2363447]
[1743622310296,0.1781263,86409.0,86408.0,0.2942074]
[1743622310895,0.1157263,86409.0,86408.0,0.2942074]
[1743622311203,0.0624,86417.0,86416.0,0.1157169]
[1743622311405,0.0624,86417.0,86416.0,0.2384769]
[1743622311602,0.1157119,86420.0,86419.0,0.1157129]
[1743622311914,0.1755119,86420.0,86419.0,0.1172729]
[1743622312101,0.30573636,86420.0,86419.0,0.2384729]
[1743622312810,0.19002446,86420.0,86419.0,0.2384729]
[1743622313112,0.13022446,86420.0,86419.0,0.2384729]
[1743622313407,0.00017324,86422.0,86421.0,0.1157103]
[1743622313608,0.00017324,86422.0,86421.0,0.1172703]
[1743622313806,0.12331037,86422.0,86421.0,0.2398703]
[1743622316606,0.00017324,86422.0,86421.0,0.2398703]
[1743622323409,0.24213366,86422.0,86421.0,0.1172703]
[1743622323611,0.36713366,86422.0,86421.0,0.1172703]
[1743622323913,0.43093366,86422.0,86421.0,0.00156]
[1743622324104,0.43093366,86422.0,86421.0,0.1157103]
[1743622325410,0.43093366,86422.0,86364.0,0.04161643]
[1743622325411,0.1157263,86409.0,86408.0,0.38030249]
[1743622325614,0.1157263,86409.0,86408.0,0.38194249]
[1743622325818,0.43860549,86409.0,86408.0,0.1752214]
[1743622326206,0.43860549,86409.0,86408.0,0.2330831]
[1743622327209,0.67860549,86409.0,86408.0,0.00164]
[1743622327413,0.1157344,86403.0,86402.0,0.20672109]
[1743622327610,0.1157411,86398.0,86395.0,0.0578719]
[1743622327812,0.1157411,86398.0,86397.0,0.39278778]
[1743622327813,0.47762111,86398.0,86397.0,0.39278778]
[1743622328115,0.60918703,86398.0,86397.0,0.39278778]
[1743622329710,0.60918703,86398.0,86397.0,0.27704538]
[1743622329711,0.83918703,86398.0,86397.0,0.27704538]
[1743622331023,1.06678072,86398.0,86397.0,0.1168224]
[1743622331325,1.06678072,86398.0,86397.0,0.1157424]
[1743622331614,0.83678072,86398.0,86397.0,0.1157424]
[1743622332923,0.1157451,86396.0,86395.0,0.1157439]
[1743622333113,0.1157491,86392.0,86391.0,0.00046301]
[1743622333317,0.1157491,86392.0,86368.0,0.34528742]
[1743622333318,0.1157705,86376.0,86371.0,0.1157762]
[1743622333516,0.47769051,86376.0,86375.0,0.00162309]
[1743622333715,0.60756525,86376.0,86375.0,0.00162309]
[1743622333916,0.73616525,86376.0,86375.0,0.00162309]
[1743622334119,0.37536525,86376.0,86375.0,0.11739499]
[1743622334521,0.37536525,86376.0,86375.0,0.17979499]
[1743622334719,0.37536525,86376.0,86375.0,0.23919499]
[1743622336620,0.19549475,86376.0,86375.0,0.23919499]
[1743622336916,0.00112001,86376.0,86375.0,0.23919499]
[1743622337116,0.0639,86379.0,86378.0,0.1157679]
[1743622337324,0.18078651,86379.0,86378.0,0.1168879]
[1743622337517,0.30752743,86379.0,86378.0,0.4776879]
[1743622340118,0.12786093,86379.0,86378.0,0.4776879]
[1743622340317,0.00874679,86394.0,86391.0,0.1157504]
[1743622340507,0.13923288,86392.0,86391.0,0.4779504]
[1743622340920,0.00017358,86400.0,86397.0,0.1157424]
[1743622341114,0.05987358,86400.0,86397.0,0.1175824]
[1743622341410,0.05987358,86400.0,86399.0,0.1157397]
[1743622341608,0.20557162,86414.0,86413.0,0.115721]
[1743622341807,0.20557162,86414.0,86413.0,0.117561]
[1743622344718,0.17528762,86414.0,86413.0,0.117561]
[1743622344921,0.29100722,86414.0,86413.0,0.117561]
[1743622345123,0.24653009,86414.0,86413.0,0.117561]
[1743622345422,0.24653009,86414.0,86413.0,0.00184]
[1743622345626,0.38679009,86414.0,86413.0,0.00184]
[1743622345924,0.115737,86401.0,86400.0,0.0578685]
[1743622346221,0.115737,86401.0,86400.0,0.0597085]
[1743622346523,0.2464035,86401.0,86400.0,0.0597085]
[1743622346927,0.3700035,86401.0,86400.0,0.0597085]
[1743622347120,0.3700035,86401.0,86400.0,0.00184]
[1743622347322,0.1157464,86394.0,86393.0,0.1745478]
[1743622347622,0.1157464,86394.0,86393.0,0.1764278]
[1743622347827,0.24903059,86394.0,86393.0,0.1764278]
[1743622348225,0.37263059,86394.0,86393.0,0.1764278]
[1743622348918,0.13328419,86394.0,86393.0,0.1764278]
[1743622349116,0.00017358,86402.0,86401.0,0.115737]
[1743622349321,0.00017358,86402.0,86401.0,0.117577]
[1743622349518,0.24010415,86402.0,86401.0,0.117577]
[1743622349923,0.24010415,86402.0,86401.0,0.180777]
[1743622350224,0.24010415,86402.0,86401.0,0.245477]
[1743622350726,0.30380415,86402.0,86401.0,0.245477]
[1743622351125,0.18806845,86402.0,86401.0,0.245477]
[1743622351320,0.00017358,86402.0,86401.0,0.606277]
[1743622352922,0.00017358,86402.0,86401.0,0.62160125]
[1743622353323,0.11590928,86402.0,86401.0,0.62160125]
[1743622353526,0.11590928,86402.0,86401.0,0.606277]
[1743622353727,0.11590928,86402.0,86401.0,0.62155259]
[1743622354122,0.24491527,86402.0,86401.0,0.00184]
[1743622354422,0.24491527,86402.0,86401.0,0.117577]
[1743622354423,0.31431527,86402.0,86401.0,0.117577]
[1743622354935,0.12917957,86402.0,86401.0,0.13297539]
[1743622355231,0.12917957,86402.0,86401.0,0.26917539]
[1743622355735,0.00017358,86402.0,86401.0,0.26917539]
[1743622355934,0.00017358,86402.0,86401.0,0.33387539]
[1743622356332,0.00017358,86402.0,86401.0,0.33389432]
[1743622357729,0.01205905,86433.0,86415.0,0.1157183]
[1743622358035,0.057855,86422.0,86415.0,0.1175583]
[1743622358226,0.0004,86416.0,86415.0,0.2545583]
[1743622358829,0.1161169,86416.0,86415.0,0.2545583]
[1743622359030,0.1161169,86416.0,86415.0,0.3196583]
[1743622360035,0.0004,86416.0,86415.0,0.3196583]
[1743622360437,0.0004,86416.0,86415.0,0.6804583]
[1743622363037,0.0004,86416.0,86415.0,0.69609126]
[1743622364531,0.0645,86416.0,86415.0,0.69609126]
[1743622367844,0.1802169,86416.0,86415.0,0.69622237]
[1743622368240,0.1802169,86416.0,86415.0,0.72145359]
[1743622368433,0.2476169,86416.0,86415.0,0.72145359]
[1743622369640,0.2476169,86416.0,86415.0,0.72146782]
[1743622370042,0.37298408,86416.0,86415.0,0.01761289]
[1743622370236,0.44098408,86416.0,86415.0,0.01577289]
[1743622370437,0.1735808,86414.0,86413.0,0.1157199]
[1743622370740,0.29894798,86414.0,86413.0,0.13332625]
[1743622370947,0.29894798,86414.0,86413.0,0.13332735]
[1743622371145,0.12536718,86414.0,86413.0,0.13332735]
[1743622371445,0.1319,86416.0,86415.0,0.1157183]
[1743622371644,0.1319,86416.0,86415.0,0.15868057]
[1743622371843,0.1319,86416.0,86415.0,0.29078057]
[1743622373046,0.2476169,86416.0,86415.0,0.29078057]
[1743622373841,0.37586111,86416.0,86415.0,0.04296227]
[1743622374047,0.37586111,86416.0,86415.0,0.01760635]
[1743622374341,0.26014421,86416.0,86415.0,0.01760635]
[1743622374549,0.37586111,86416.0,86415.0,0.13332465]
[1743622374947,0.37586111,86416.0,86415.0,0.29256102]
[1743622375353,0.37586111,86416.0,86415.0,0.29256084]
[1743622375551,0.19274421,86416.0,86415.0,0.29256084]
[1743622375745,0.0645,86416.0,86415.0,0.26708242]
[1743622376656,0.0645,86416.0,86415.0,0.29219156]
[1743622377251,0.3608,86427.0,86421.0,0.1157103]
[1743622377448,0.1157013,86428.0,86422.0,0.22988766]
[1743622377647,0.1329,86429.0,86423.0,0.15674086]
[1743622377849,0.17253188,86430.0,86429.0,0.1156995]
[1743622378044,0.17253188,86430.0,86429.0,0.51937276]
[1743622378244,0.17253188,86430.0,86429.0,0.4783395]
[1743622378444,0.17253188,86430.0,86429.0,0.6113395]
[1743622378952,0.28823008,86430.0,86429.0,0.6113395]
[1743622379252,0.35303008,86430.0,86429.0,0.6113395]
[1743622380168,0.1804982,86430.0,86429.0,0.6113395]
[1743622380554,0.01172384,86439.0,86429.0,0.6113395]
[1743622380555,0.0578354,86451.0,86430.0,0.1156982]
[1743622380760,0.11568,86444.0,86441.0,0.1156835]
[1743622380955,0.0664,86447.0,86441.0,0.13335922]
[1743622381258,0.1156778,86446.0,86441.0,0.20065922]
[1743622381461,0.115679,86445.0,86441.0,0.20065922]
[1743622381964,0.115679,86445.0,86441.0,0.26505922]
[1743622382174,0.20700305,86448.0,86441.0,0.17491776]
[1743622382357,0.20700305,86448.0,86447.0,0.4764754]
[1743622382557,0.20700305,86448.0,86447.0,0.51967799]
[1743622382755,0.20700305,86448.0,86447.0,0.62625112]
[1743622382959,0.32267715,86448.0,86447.0,0.56185112]
[1743622383965,0.24069548,86448.0,86447.0,0.13335112]
[1743622384163,0.30929548,86448.0,86447.0,0.13335112]
[1743622384363,0.30929548,86448.0,86447.0,0.1175154]
[1743622384672,0.55929548,86448.0,86447.0,0.00184]
[1743622384859,0.0578457,86436.0,86433.0,0.0669]
[1743622385060,0.1735399,86434.0,86433.0,0.1169742]
[1743622385359,0.30475515,86434.0,86433.0,0.1169742]
[1743622385559,0.44295515,86434.0,86433.0,0.1169742]
[1743622387467,0.44295515,86434.0,86433.0,0.1156942]
[1743622387666,0.44295515,86434.0,86433.0,0.1169742]
[1743622387969,0.44295515,86434.0,86433.0,0.01735322]
[1743622388167,0.44295515,86434.0,86433.0,0.01607322]
[1743622388664,0.44295515,86434.0,86433.0,0.13176742]
[1743622388868,0.44295515,86434.0,86433.0,0.13304742]
[1743622389064,0.26941525,86434.0,86433.0,0.20254742]
[1743622389269,0.00132,86434.0,86433.0,0.2282215]
[1743622389470,0.07752,86446.0,86445.0,0.1156781]
[1743622389770,0.1835754,86447.0,86446.0,0.1156768]
[1743622389971,0.1849354,86447.0,86446.0,0.1865368]
[1743622390270,0.31355238,86447.0,86446.0,0.1865368]
[1743622390861,0.19787698,86447.0,86446.0,0.1865368]
[1743622391065,0.12997698,86447.0,86446.0,0.1865368]
[1743622391278,0.12997698,86447.0,86446.0,0.33766915]
[1743622391571,0.12997698,86447.0,86446.0,0.3376673]
[1743622392169,0.12997698,86447.0,86446.0,0.7240821]